bitfinex/quotes_ETHUSD_20251015
["timestamp","ask_amount","ask_price","bid_price","bid_amount"]
[1760509898170,0.20759951,4088.5,4087.8,0.001116]
[1760509898342,0.00109951,4088.5,4087.8,0.001116]
[1760509898541,0.00112344,4088.4,4087.8,0.001116]
[1760509898775,0.00121918,4088.3,4087.8,0.001116]
[1760509898977,0.63477131,4088.2,4087.8,0.001116]
[1760509899271,0.00131493,4087.9,4087.8,0.001116]
[1760509899577,1.84176095,4087.9,4087.8,0.001116]
[1760509901671,0.84141493,4087.9,4087.8,0.001116]
[1760509902554,0.63493887,4087.8,4087.4,0.002]
[1760509902752,0.63493887,4087.8,4085.9,0.069]
[1760509903074,0.00133887,4087.5,4085.9,0.069]
[1760509904476,0.00133887,4088.0,4085.9,0.069]
[1760509904676,0.63493887,4088.0,4086.0,0.2667]
[1760509904891,0.63493887,4088.0,4086.1,2.4473214]
[1760509905403,0.00114738,4088.3,4086.2,0.2667]
[1760509905604,0.00114738,4088.5,4086.7,2.44693557]
[1760509905808,0.00117131,4088.5,4086.8,0.51139356]
[1760509906098,0.63477131,4088.3,4086.8,0.2667]
[1760509906707,0.46167131,4088.2,4086.7,0.2667]
[1760509906909,0.6336,4088.1,4086.6,0.2667]
[1760509908010,0.38365951,4088.3,4087.1,2.44671243]
[1760509908215,0.00102773,4088.8,4088.2,0.1977]
[1760509908415,1.01824967,4088.8,4088.2,0.1977]
[1760509908712,0.63462773,4088.8,4088.2,0.1977]
[1760509908877,0.00102773,4088.8,4088.2,0.1977]
[1760509909282,0.6336,4088.8,4088.2,0.1977]
[1760509910314,0.60980352,4088.9,4088.2,0.1977]
[1760509910315,0.38359971,4088.9,4088.2,0.1977]
[1760509910609,0.38359971,4088.9,4088.3,0.2667]
[1760509910820,0.001,4089.0,4088.2,0.1977]
[1760509911117,0.001,4089.0,4088.3,0.2667]
[1760509911768,0.001,4089.0,4088.2,0.1977]
[1760509911968,0.2252,4088.9,4088.2,0.1977]
[1760509912408,0.001,4089.0,4088.2,0.1977]
[1760509912708,0.1216,4088.9,4088.3,0.2667]
[1760509913081,0.1216,4088.9,4088.4,0.56990177]
[1760509913472,0.1216,4088.9,4088.5,0.2667]
[1760509913674,0.1216,4088.9,4088.2,0.3193]
[1760509913982,0.1216,4088.9,4088.2,0.586]
[1760509914183,0.1216,4088.9,4088.3,0.2667]
[1760509914973,0.1216,4088.9,4088.2,0.3193]
[1760509914974,0.1216,4088.5,4088.4,0.2667]
[1760509915198,0.001,4089.0,4088.4,0.2667]
[1760509915402,0.001,4089.0,4088.4,0.1216]
[1760509915569,0.001,4089.0,4088.5,0.54323549]
[1760509917273,0.001,4089.0,4088.5,2.98912028]
[1760509918173,0.001,4089.0,4088.5,3.01357912]
[1760509918510,0.001,4089.0,4088.5,2.98912028]
[1760509920297,0.001,4089.0,4088.5,3.11072028]
[1760509920498,0.001,4089.0,4088.5,0.27653549]
[1760509920732,0.001,4089.0,4088.2,0.1977]
[1760509921024,0.2301,4088.9,4088.2,0.1977]
[1760509921223,0.6752,4088.9,4088.2,0.1977]
[1760509921804,0.001,4089.0,4088.2,0.1977]
[1760509922022,0.001,4089.0,4088.5,2.44588479]
[1760509922514,0.001,4089.0,4088.5,2.71258479]
[1760509923406,0.001,4089.0,4088.5,3.34618479]
[1760509923610,0.001,4089.0,4088.5,3.94517316]
[1760509924641,0.001,4089.0,4088.5,3.31157316]
[1760509924928,0.001,4089.0,4088.5,3.94517316]
[1760509925524,0.001,4089.0,4088.5,3.31157316]
[1760509926509,0.001,4089.0,4088.5,3.04487316]
[1760509926834,0.001,4089.0,4088.5,2.71258479]
[1760509927338,0.001,4089.0,4088.5,3.34618479]
[1760509928418,0.001,4089.0,4088.5,5.58092052]
[1760509929040,1e-08,4089.2,4089.1,3.07912591]
[1760509929256,1e-08,4089.2,4089.1,3.10204706]
[1760509929741,1e-08,4089.2,4089.1,3.92351202]
[1760509930652,1e-08,4089.2,4089.1,4.04511202]
[1760509931413,1e-08,4089.2,4089.1,3.92351202]
[1760509932242,0.4637,4091.8,4090.1,0.6336]
[1760509932442,0.4637,4091.8,4090.3,0.6336]
[1760509932646,0.4637,4091.8,4090.4,0.2667]
[1760509932850,0.4637,4091.8,4091.2,2.44426473]
[1760509933145,0.4637,4091.8,4091.1,2.44427727]
[1760509933346,0.4627,4091.7,4091.0,2.44437516]
[1760509933534,0.4627,4091.7,4091.1,2.44432766]
[1760509933913,4.09353361,4091.6,4090.3,0.6336]
[1760509934135,0.4627,4091.5,4090.8,2.44449934]
[1760509934728,0.43245032,4091.7,4090.8,2.44449934]
[1760509934939,0.4627,4091.6,4090.2,0.37685878]
[1760509935173,0.2342,4090.9,4090.3,2.44480844]
[1760509935345,0.6969,4090.9,4090.2,2.44484982]
[1760509935667,0.6969,4090.9,4090.2,2.44485084]
[1760509935958,0.6969,4090.9,4089.9,0.069]
[1760509936158,0.2342,4090.9,4090.5,2.44464761]
[1760509936364,0.2342,4090.9,4090.6,2.44462355]
[1760509936724,0.2342,4090.9,4090.5,2.44467014]
[1760509936924,0.4627,4091.2,4090.6,2.44457738]
[1760509937147,0.4627,4091.2,4089.9,0.069]
[1760509937148,0.4637,4091.8,4091.0,2.44435164]
[1760509937554,2.41886549,4091.8,4091.0,2.44435164]
[1760509937961,1.95518419,4091.7,4091.0,2.44435164]
[1760509938952,0.4627,4091.6,4090.0,0.6336]
[1760509939231,0.4627,4091.5,4090.8,2.44450722]
[1760509939434,0.4627,4091.4,4090.7,2.4445555]
[1760509939651,0.4627,4091.4,4090.8,2.44450685]
[1760509939878,0.90001977,4091.4,4090.3,2.44475257]
[1760509940047,0.2342,4090.9,4090.1,2.4449048]
[1760509940249,0.2342,4090.9,4090.3,2.44476619]
[1760509940649,0.2342,4090.9,4090.0,2.44497247]
[1760509940852,0.2342,4090.9,4090.2,2.44486105]
[1760509940853,0.4627,4090.8,4090.2,2.44486105]
[1760509941068,0.4627,4090.8,4089.5,2.44524922]
[1760509941069,0.4627,4090.8,4090.1,2.44491405]
[1760509941368,0.4627,4090.8,4090.5,0.1216]
[1760509941533,0.4627,4090.7,4090.5,0.1216]
[1760509941735,0.4627,4090.6,4090.5,0.1216]
[1760509942141,0.4627,4090.6,4090.2,0.1216]
[1760509942365,0.4627,4090.6,4088.8,0.2667]
[1760509942566,0.4627,4090.6,4089.2,2.44546013]
[1760509942883,0.4627,4090.5,4089.2,2.44546013]
[1760509943080,1.95604561,4089.9,4089.1,2.44550716]
[1760509943264,2.65300273,4089.8,4089.1,2.44550716]
[1760509943772,2.6169,4089.8,4088.2,0.4644]
[1760509943959,0.6969,4089.8,4088.3,0.29105055]
[1760509944162,0.6969,4089.8,4088.6,2.44578114]
[1760509944363,0.4627,4089.7,4088.5,2.44587892]
[1760509944569,0.4627,4089.7,4088.8,2.44570303]
[1760509944887,0.4627,4090.5,4089.5,2.44527773]
[1760509945187,1.95581233,4090.4,4089.6,2.44520708]
[1760509945350,1.95581233,4090.4,4089.6,2.44517752]
[1760509945550,0.4627,4090.3,4089.4,2.4453465]
[1760509945779,1.95590169,4090.2,4089.5,2.4452693]
[1760509945987,0.4627,4090.3,4089.1,0.6336]
[1760509946160,0.4627,4090.3,4089.6,2.44518353]
[1760509946884,0.4627,4090.3,4089.1,0.6336]
[1760509947060,0.4627,4090.2,4088.4,4.8918346]
[1760509947388,0.4627,4090.2,4089.3,2.44536952]
[1760509947556,0.4627,4090.2,4089.4,2.44532684]
[1760509947757,0.4627,4090.1,4088.5,0.83901346]
[1760509947952,0.4627,4090.0,4089.0,2.44558321]
[1760509948184,0.2342,4089.9,4089.0,2.44558321]
[1760509948359,1.95608587,4089.8,4089.0,2.44558321]
[1760509948752,0.2342,4089.9,4088.8,0.002]
[1760509949089,1.95585637,4090.3,4089.6,2.44517847]
[1760509949288,0.24185564,4090.2,4089.0,3.07918571]
[1760509949475,0.4627,4090.5,4088.8,0.002]
[1760509949656,0.4627,4090.4,4089.5,2.44523945]
[1760509950079,0.001,4090.6,4089.4,2.44534075]
[1760509950286,0.4627,4090.3,4088.8,2.44768648]
[1760509950582,0.4627,4090.3,4089.3,2.44536246]
[1760509950788,0.4627,4090.3,4089.4,2.44530077]
[1760509951283,1.95589457,4090.2,4089.5,2.44527612]
[1760509951482,3.87596036,4090.1,4089.4,2.44534368]
[1760509951671,1.92,4090.1,4088.9,2.44564552]
[1760509951879,0.4627,4090.0,4089.2,2.44545599]
[1760509952058,0.2342,4089.9,4089.2,2.44545599]
[1760509952259,0.2342,4089.9,4089.7,0.1216]
[1760509952684,0.6969,4089.9,4089.7,0.1216]
[1760509953294,0.2342,4089.9,4089.7,0.1216]
[1760509953665,0.4627,4089.8,4089.7,0.1216]
[1760509954355,0.4627,4089.8,4088.8,2.44769008]
[1760509954557,0.4627,4089.7,4089.3,0.1216]
[1760509954862,0.4627,4089.7,4088.8,0.002]
[1760509954863,1.95627854,4089.4,4089.0,0.1216]
[1760509955063,0.4627,4089.4,4089.0,0.1216]
[1760509955399,1.92,4089.6,4089.0,0.1216]
[1760509955400,1.95618756,4089.6,4089.0,0.1216]
[1760509955601,1.95618756,4089.6,4089.0,2.56717172]
[1760509956497,1.95618756,4089.6,4089.0,0.1216]
[1760509956999,0.1216,4089.7,4089.0,0.1216]
[1760509958504,0.1216,4089.7,4089.0,2.56716403]
[1760509959420,0.4627,4090.3,4089.0,0.76819235]
[1760509959574,0.1216,4090.2,4089.6,0.1216]
[1760509960181,1.95594239,4090.1,4089.6,0.1216]
[1760509960374,1.9559903,4090.0,4089.6,0.1216]
[1760509960570,2.0416,4090.2,4089.6,0.1216]
[1760509960775,2.07749879,4090.2,4089.6,2.56680778]
[1760509961004,1.95594291,4090.1,4089.6,0.1216]
[1760509961378,4.30914291,4090.1,4089.6,0.1216]
[1760509961773,1.92,4090.1,4089.6,0.1216]
[1760509961972,0.2291,4089.7,4089.6,0.1216]
[1760509962207,0.4332,4090.0,4089.6,0.1216]
[1760509962902,0.1216,4090.2,4089.7,0.00967424]
[1760509963094,0.5548,4090.2,4089.7,0.00967424]
[1760509963296,0.5548,4090.2,4089.6,0.1216]
[1760509964090,0.1216,4090.2,4089.7,0.02445167]
[1760509964286,0.001,4090.6,4088.9,0.6336]
[1760509964495,0.001,4090.6,4090.1,0.1216]
[1760509964688,0.001,4090.6,4090.5,0.1216]
[1760509964893,0.4332,4090.5,4089.0,0.30813028]
[1760509965094,0.001,4090.6,4089.0,0.30813028]
[1760509965095,1.9567399,4090.6,4089.1,0.6336]
[1760509965295,0.001,4090.6,4089.9,2.44503247]
[1760509965496,0.001,4090.6,4089.4,0.6336]
[1760509965698,0.001,4090.6,4089.0,0.6336]
[1760509966019,0.4332,4090.5,4089.6,2.44522369]
[1760509966179,0.4332,4090.4,4089.3,2.44536818]
[1760509966380,0.4332,4090.3,4089.0,0.6336]
[1760509966591,0.4332,4090.3,4089.5,2.44526429]
[1760509967002,1.95592566,4090.2,4089.5,2.44526429]
[1760509968211,1.95592566,4090.2,4089.6,2.44522553]
[1760509969616,0.4332,4090.3,4089.0,0.6356]
[1760509969815,0.4332,4090.3,4089.5,2.4452402]
[1760509970312,0.001,4090.6,4089.7,2.44512753]
[1760509970521,0.001,4090.6,4089.2,2.71211002]
[1760509970681,0.001,4090.6,4090.3,2.44480712]
[1760509970885,0.001,4090.6,4090.5,0.069]
[1760509972829,0.001,4090.6,4090.5,3.3986637]
[1760509973033,0.001,4090.6,4090.5,2.7650637]
[1760509973331,0.001,4090.6,4090.5,2.51368891]
[1760509973528,0.001,4090.6,4090.4,2.44474605]
[1760509973727,0.001,4090.6,4090.2,0.069]
[1760509973930,0.001,4090.6,4090.2,2.51386743]
[1760509974098,0.001,4090.6,4090.0,2.44496271]
[1760509974099,0.4748,4090.5,4090.0,2.44497336]
[1760509974298,0.4748,4090.5,4090.1,2.44492164]
[1760509974629,0.001,4090.6,4089.8,0.069]
[1760509974800,0.001,4090.6,4089.8,2.51408244]
[1760509975001,0.001,4090.6,4090.2,2.56645019]
[1760509975201,0.001,4090.6,4090.3,2.44480295]
[1760509975400,0.001,4090.6,4090.2,0.1216]
[1760509975643,0.001,4090.6,4090.2,2.5664356]
[1760509975805,0.001,4090.6,4090.2,0.1216]
[1760509976009,0.001,4090.6,4090.5,2.44468891]
[1760509976309,0.001,4090.6,4090.5,2.56628891]
[1760509978321,0.001,4090.6,4090.5,0.1216]
[1760509979033,0.001,4090.6,4090.5,2.56628891]
[1760509980411,0.001,4090.6,4090.5,2.83298891]
[1760509980622,0.001,4090.6,4090.5,0.64937969]
[1760509980823,0.001,4090.6,4090.5,0.1216]
[1760509981210,0.001,4090.6,4089.9,0.9003]
[1760509981403,0.001,4090.6,4090.5,2.56628891]
[1760509981604,0.001,4090.6,4090.5,0.1216]
[1760509983018,0.001,4090.6,4090.5,2.56628891]
[1760509983608,0.001,4090.6,4090.5,3.06739708]
[1760509984913,0.001,4090.6,4090.5,3.84609708]
[1760509985419,0.001,4090.6,4090.5,3.57939708]
[1760509985725,0.001,4090.6,4090.0,0.2667]
[1760509985916,0.001,4090.6,4089.9,2.44503619]
[1760509986115,0.4748,4090.5,4089.6,2.44522689]
[1760509986436,0.001,4090.6,4089.3,0.6336]
[1760509986635,0.001,4090.6,4089.8,2.44506337]
[1760509986932,0.001,4090.6,4089.6,0.2667]
[1760509986933,1.95671354,4090.6,4089.9,2.44502507]
[1760509987132,1.95671354,4090.6,4089.6,2.71190114]
[1760509987133,0.001,4090.6,4090.0,2.44496945]
[1760509987334,0.001,4090.6,4090.1,2.44492231]
[1760509987539,0.001,4090.6,4090.1,0.6336]
[1760509987836,0.001,4090.6,4090.5,2.44468891]
[1760509988036,0.001,4090.6,4090.5,2.46913579]
[1760509988838,0.001,4090.6,4090.5,2.44468891]
[1760509990134,0.001,4090.6,4090.0,0.6336]
[1760509990308,0.001,4090.6,4090.5,2.44468891]
[1760509990503,0.001,4090.6,4090.4,2.4447291]
[1760509990711,0.001,4090.6,4090.5,2.44468891]
[1760509992114,0.001,4090.6,4090.5,3.17811711]
[1760509992922,0.001,4090.6,4090.5,3.81171711]
[1760509993253,0.001,4090.6,4090.5,4.07841711]
[1760509994326,0.001,4091.3,4091.2,3.07787062]
[1760509994640,0.001,4091.3,4091.2,3.38565768]
[1760509994827,0.001,4091.3,4091.2,3.67680038]
[1760509995042,0.001,4091.3,4091.2,3.79840038]
[1760509996556,0.452,4092.9,4091.2,1.32968706]
[1760509996766,0.452,4092.9,4092.2,3.07727332]
[1760509997055,0.2304,4094.2,4092.2,3.07727332]
[1760509997056,0.452,4093.3,4092.2,3.07727332]
[1760509997422,0.452,4092.9,4092.2,3.07727332]
[1760509997755,0.2304,4094.2,4092.2,3.07727332]
[1760509997756,0.452,4093.4,4092.2,3.34397332]
[1760509998644,0.452,4093.8,4092.2,3.34962107]
[1760509998852,0.452,4093.8,4092.2,3.35269344]
[1760509999023,0.452,4093.8,4092.2,3.93233805]
[1760509999221,0.452,4094.1,4092.2,5.85233805]
[1760509999420,0.452,4094.1,4092.2,5.84361793]
[1760510000323,0.2304,4094.2,4092.2,6.15835366]
[1760510000830,0.2304,4094.2,4092.2,6.63925847]
[1760510001956,0.2304,4094.2,4092.2,6.32452274]
[1760510002124,0.2304,4094.6,4092.6,3.07703449]
[1760510002325,0.6824,4095.0,4094.9,2.44206207]
[1760510003870,0.001,4095.4,4095.3,2.44182355]
[1760510004034,0.001,4095.4,4095.3,3.07542355]
[1760510004364,0.001,4095.4,4095.3,6.05164659]
[1760510004567,1e-08,4096.3,4095.3,6.03180669]
[1760510004733,1e-08,4096.3,4096.2,3.07488704]
[1760510005641,1e-08,4096.3,4096.2,3.54388704]
[1760510005833,1e-08,4096.3,4096.2,3.55043813]
[1760510006028,1e-08,4096.3,4096.2,4.16526908]
[1760510006348,1e-08,4096.3,4096.2,3.68971799]
[1760510006666,1e-08,4096.3,4096.2,3.19648704]
[1760510006667,0.45200001,4096.3,4096.2,3.19648704]
[1760510007482,0.001,4096.6,4096.2,1.5516]
[1760510007629,0.001,4096.6,4096.5,2.44110826]
[1760510007833,0.001,4096.6,4096.4,2.44115953]
[1760510008058,0.452,4096.5,4096.4,2.44116785]
[1760510008744,0.001,4096.6,4096.5,3.07470826]
[1760510008951,0.001,4096.6,4096.5,4.01342436]
[1760510010450,0.453,4096.6,4095.8,0.1565]
[1760510010650,0.453,4096.6,4095.2,0.1565]
[1760510010651,0.2304,4095.9,4095.2,0.1565]
[1760510010849,0.2304,4095.9,4095.0,2.44200244]
[1760510010850,0.6824,4095.9,4095.0,2.44200244]
[1760510011050,0.6824,4095.9,4095.8,2.44152546]
[1760510011260,0.6824,4095.9,4095.7,2.441583]
[1760510011575,0.452,4095.8,4095.6,2.44163002]
[1760510011749,0.452,4095.8,4095.7,2.44158507]
[1760510012446,0.452,4095.8,4095.1,0.6336]
[1760510012750,0.452,4095.8,4095.5,2.44165471]
[1760510012950,0.452,4095.7,4095.5,2.44169403]
[1760510013135,0.452,4095.6,4095.5,2.44169403]
[1760510013565,0.2304,4095.9,4095.8,2.44152546]
[1760510013768,0.6824,4095.9,4095.8,2.44152546]
[1760510013945,0.6824,4095.9,4095.2,2.44185592]
[1760510014145,0.452,4095.8,4093.9,0.5842]
[1760510014345,0.452,4095.7,4095.3,2.44180625]
[1760510014573,0.2304,4095.9,4095.1,2.44188475]
[1760510014574,0.452,4095.6,4095.1,2.44188475]
[1760510014772,0.452,4095.5,4095.1,2.44188475]
[1760510015068,0.452,4095.4,4095.3,2.44182355]
[1760510015452,0.452,4095.8,4095.3,2.44182355]
[1760510015664,0.452,4095.7,4095.5,2.44165435]
[1760510015965,0.452,4095.6,4095.5,2.44165435]
[1760510016167,0.452,4095.6,4095.4,2.44174699]
[1760510016372,0.452,4095.5,4095.4,2.44174699]
[1760510017686,0.452,4095.5,4095.4,2.56334699]
[1760510017847,0.2304,4095.9,4095.8,2.44152546]
[1760510018177,0.2304,4095.9,4095.4,0.62212285]
[1760510018178,0.453,4096.6,4096.4,2.4411661]
[1760510018381,0.453,4096.6,4096.5,0.1216]
[1760510019081,0.453,4096.6,4096.5,2.56270826]
[1760510019283,0.001,4096.6,4096.5,2.56270826]
[1760510019461,0.001,4096.6,4096.5,0.1216]
[1760510019667,0.453,4096.6,4096.5,0.1216]
[1760510019861,0.453,4096.6,4095.1,2.44192066]
[1760510020065,0.453,4096.6,4095.8,2.44148591]
[1760510020066,0.4527,4096.5,4095.8,2.44148591]
[1760510020263,0.4527,4096.4,4095.9,2.44145937]
[1760510020474,0.4527,4096.3,4095.4,0.6336]
[1760510020773,0.001,4096.6,4096.4,2.44111596]
[1760510021357,0.4527,4096.5,4096.4,2.44111596]
[1760510023064,0.001,4096.6,4096.5,2.44110826]
[1760510023256,0.001,4096.6,4096.5,2.46098696]
[1760510023679,0.001,4096.6,4096.5,0.0198787]
[1760510023859,0.4537,4096.6,4096.3,2.44117822]
[1760510024065,0.4527,4096.5,4094.6,2.3708]
[1760510024276,0.4527,4096.5,4095.6,0.6336]
[1760510024484,0.4527,4096.5,4095.4,0.6336]
[1760510024686,0.001,4096.6,4096.3,2.44121498]
[1760510024869,0.001,4096.6,4095.4,2.44175753]
[1760510025081,0.001,4096.6,4096.4,2.44111001]
[1760510025403,0.001,4096.6,4096.4,2.44115908]
[1760510025591,0.4537,4096.6,4096.4,2.44115908]
[1760510025901,0.001,4096.6,4096.4,2.44115001]
[1760510026415,0.001,4096.6,4095.8,2.44152546]
[1760510026597,0.001,4096.6,4096.5,2.44110826]
[1760510027284,0.001,4096.6,4096.5,2.46551934]
[1760510027503,0.001,4096.6,4096.5,3.07470826]
[1760510029598,0.001,4096.6,4096.5,3.52350826]
[1760510029798,0.001,4096.6,4096.5,3.07470826]
[1760510029979,0.001,4096.6,4096.5,3.74789879]
[1760510030973,0.001,4096.6,4096.5,3.11429879]
[1760510031201,0.001,4096.6,4096.5,2.56270826]
[1760510031381,0.4537,4096.6,4096.5,2.56270826]
[1760510031901,0.001,4096.6,4096.5,2.56270826]
[1760510034517,0.001,4096.6,4096.5,2.58711934]
[1760510034702,0.001,4096.6,4096.5,2.56270826]
[1760510034904,0.001,4096.6,4096.5,3.10818073]
[1760510036104,0.001,4096.6,4096.5,3.74178073]
[1760510036625,0.001,4097.1,4097.0,3.07441034]
[1760510036924,0.001,4097.1,4097.0,3.09881844]
[1760510037127,0.001,4097.1,4097.0,3.52521034]
[1760510037309,0.001,4097.1,4097.0,4.1242608]
[1760510037626,0.001,4097.1,4097.0,6.0442608]
[1760510038744,0.001,4097.1,4097.0,8.6232608]
[1760510039433,0.001,4097.1,4097.0,6.0442608]
[1760510040342,0.001,4097.5,4097.4,4.99417207]
[1760510040555,0.001,4097.5,4097.4,5.92965442]
[1760510040703,0.001,4097.5,4097.4,6.38045442]
[1760510041339,0.001,4097.5,4097.4,5.92965442]
[1760510041634,0.001,4097.5,4097.4,3.37605442]
[1760510041841,0.001,4097.5,4097.4,3.40046014]
[1760510042003,0.001,4097.5,4097.4,3.37605442]
[1760510043114,0.001,4097.5,4097.4,6.38045442]
[1760510043316,2.27671332,4101.8,4097.5,1.07411059]
[1760510043514,3.00870738,4102.3,4100.1,0.6336]
[1760510043515,0.2041,4101.6,4100.1,0.6336]
[1760510043951,0.2041,4101.6,4099.5,0.4508]
[1760510043952,0.94590723,4101.5,4099.5,0.4508]
[1760510044166,0.94590723,4101.5,4100.2,2.43884931]
[1760510044458,0.2041,4100.3,4100.2,3.07250541]
[1760510044806,0.2041,4100.3,4100.2,2.43890541]
[1760510045447,0.2041,4100.3,4099.1,0.6336]
[1760510045654,0.2041,4100.3,4100.2,2.43890541]
[1760510046428,0.2041,4100.3,4100.2,2.56050541]
[1760510047240,0.2041,4100.3,4100.2,3.19410541]
[1760510047425,0.2041,4100.6,4100.3,0.6336]
[1760510047623,0.3257,4101.6,4100.3,0.6336]
[1760510047945,0.2041,4101.9,4100.6,2.43866751]
[1760510048149,0.2041,4101.9,4100.7,2.86601675]
[1760510048361,0.4775739,4103.8,4101.8,0.6336]
[1760510048520,0.1299,4102.8,4102.7,2.43741926]
[1760510049357,0.2041,4103.4,4102.6,2.43747552]
[1760510049660,0.2041,4103.4,4103.3,2.43706285]
[1760510049859,0.2041,4103.4,4100.7,0.31241675]
[1760510050030,0.2041,4103.4,4101.9,0.65797894]
[1760510050229,0.2041,4103.4,4101.0,2.67312793]
[1760510050447,0.1299,4102.0,4101.9,2.43789463]
[1760510051118,0.1299,4102.0,4101.8,2.4379489]
[1760510051421,0.1299,4102.0,4101.6,2.43806585]
[1760510051620,0.1299,4102.0,4101.1,0.6336]
[1760510051828,0.1299,4102.0,4101.9,2.43789463]
[1760510052223,2.15389373,4103.0,4102.0,2.43779493]
[1760510052414,2.15389373,4103.0,4102.1,2.43777237]
[1760510052415,0.60236026,4102.9,4102.1,2.43777237]
[1760510052634,0.2041,4103.0,4101.3,2.43825128]
[1760510052635,0.2041,4103.0,4102.0,2.43783308]
[1760510052837,0.2041,4103.0,4101.2,0.6336]
[1760510053049,0.2041,4103.0,4101.1,0.6336]
[1760510053221,0.2041,4103.0,4102.1,2.43772741]
[1760510053421,0.2041,4103.0,4101.3,0.4501]
[1760510053628,0.2041,4103.0,4101.9,2.43783577]
[1760510053829,1.94987752,4102.9,4101.9,2.43783577]
[1760510054029,0.2041,4103.0,4100.6,0.4501]
[1760510054030,0.21539775,4102.8,4100.6,0.4501]
[1760510054230,1.95013994,4102.3,4101.4,2.43814709]
[1760510054433,1.9500349,4102.5,4101.6,2.43806163]
[1760510054639,4.08530257,4102.8,4101.6,2.43806163]
[1760510054844,0.21539775,4102.8,4101.7,2.43800975]
[1760510055016,0.2041,4103.0,4101.7,2.43800975]
[1760510055424,0.099,4102.9,4101.7,2.43800975]
[1760510055638,0.099,4102.8,4101.7,2.43800975]
[1760510055848,0.2041,4103.0,4101.6,2.43806129]
[1760510056031,0.099,4102.7,4101.7,2.46238041]
[1760510056453,0.1296,4101.8,4101.3,2.43820503]
[1760510056662,0.1296,4101.8,4101.1,2.43831925]
[1760510056822,0.2289,4101.8,4100.4,0.2347]
[1760510057162,0.2289,4101.8,4101.1,2.43836315]
[1760510057324,0.2289,4101.8,4101.2,2.4382798]
[1760510057523,0.1296,4101.8,4101.3,0.02438251]
[1760510057739,0.1296,4101.8,4101.7,0.1216]
[1760510057956,0.2289,4101.8,4101.4,0.1216]
[1760510058424,0.0993,4101.7,4101.4,0.1216]
[1760510059471,0.1296,4101.8,4101.4,0.1216]
[1760510059472,0.1216,4102.1,4101.4,0.1216]
[1760510060040,0.1216,4102.1,4101.4,2.55978724]
[1760510060263,0.1216,4102.1,4101.5,0.02438132]
[1760510060426,0.1216,4102.1,4101.5,2.46249796]
[1760510061049,0.099,4102.5,4101.1,0.2204]
[1760510061247,0.2206,4102.5,4101.9,2.4378871]
[1760510061458,0.2206,4102.5,4101.8,2.55953468]
[1760510061858,0.2206,4102.5,4101.8,0.1216]
[1760510062059,0.2276,4102.4,4101.8,0.1216]
[1760510062235,0.2276,4102.4,4100.9,3.07205496]
[1760510062438,0.1216,4102.2,4101.5,0.1216]
[1760510062667,0.1299,4101.6,4101.5,0.1216]
[1760510062896,2.17935835,4101.6,4101.5,0.1216]
[1760510063059,2.17935835,4101.6,4101.1,0.1216]
[1760510063060,0.44683584,4101.6,4101.1,0.1216]
[1760510063256,0.1299,4101.6,4101.1,0.1216]
[1760510063464,0.1216,4101.8,4101.1,0.1216]
[1760510063661,0.1299,4101.7,4101.1,2.55995428]
[1760510063865,0.2289,4101.7,4101.1,0.1216]
[1760510064062,0.2289,4101.7,4100.4,0.2347]
[1760510064063,0.1216,4101.5,4100.8,0.1216]
[1760510064573,1.95068301,4101.2,4100.8,0.1216]
[1760510064781,2.04968301,4101.2,4100.8,0.1216]
[1760510065671,0.099,4101.1,4100.8,0.1216]
[1760510066595,2.15389128,4100.9,4100.1,0.002]
[1760510066798,0.2031,4100.9,4100.1,0.002]
[1760510066999,1.950934,4100.6,4100.1,0.002]
[1760510067166,1.95109498,4100.3,4100.1,0.002]
[1760510067365,1.92,4100.5,4100.1,0.002]
[1760510067366,0.1,4100.5,4100.1,0.002]
[1760510067566,1.95112433,4100.2,4100.1,0.002]
[1760510068068,2.05112433,4100.2,4100.1,0.002]
[1760510068286,4.56333968,4100.2,4100.1,0.002]
[1760510073607,13.70266903,4100.2,4100.1,0.002]
[1760510074607,4.56333968,4100.2,4100.1,0.002]
[1760510076537,4.46333968,4100.2,4100.1,0.002]
[1760510078233,1.92,4100.2,4100.1,0.002]
[1760510078532,0.3011,4101.5,4100.1,0.6725]
[1760510078728,0.1216,4100.7,4100.1,0.6725]
[1760510079623,0.099,4100.8,4100.1,0.002]
[1760510079828,0.22231,4100.7,4100.1,0.002]
[1760510080912,1.950934,4100.6,4100.1,0.002]
[1760510081912,0.22231,4100.7,4100.1,0.002]
[1760510082237,0.2041,4101.0,4100.1,0.2232]
[1760510082439,0.1216,4100.3,4100.1,0.2232]
[1760510082634,0.2206,4100.3,4100.1,0.002]
[1760510082839,0.099,4100.2,4100.1,0.002]
[1760510083136,2.05012433,4100.2,4100.1,0.002]
[1760510083341,4.4754012,4100.2,4100.1,0.002]
[1760510084838,4.5744012,4100.2,4100.1,0.002]
[1760510085929,4.4754012,4100.2,4100.1,0.002]
[1760510086331,4.5744012,4100.2,4100.1,0.002]
[1760510089748,4.4754012,4100.2,4100.1,0.002]
[1760510092051,0.1216,4100.3,4100.1,0.6564]
[1760510092356,0.1216,4100.3,4100.2,0.4332]
[1760510092724,2.07267675,4100.3,4100.2,0.4332]
[1760510093023,1.95112433,4100.2,4100.1,0.2232]
[1760510093419,1.95112433,4100.2,4100.1,0.673]
[1760510093624,0.1216,4100.3,4100.1,0.673]
[1760510093820,1.92,4101.4,4100.2,0.4498]
[1760510094024,0.1216,4100.7,4100.2,0.4498]
[1760510094227,0.1216,4100.7,4100.3,0.4498]
[1760510094461,0.001,4100.3,4100.1,0.3448]
[1760510095060,0.001,4100.3,4100.2,0.4498]
[1760510095426,0.001,4100.3,4100.2,0.47418905]
[1760510095626,0.001,4100.3,4100.2,0.4498]